Workbook

Sheet SUMMARY
D1: 5%
B2: SITE | C2: TOTAL | D2: CPA Estimate | G2: FY1 | H2: FY2 | I2: FY3
B4: KUSILE | C4: ='Kusile '!I64 -> 0 | D4: =C4*$D$1 -> 0 | F4: Budget | G4: =C10*0.165 -> 0 | H4: =C10*0.5 -> 0 | I4: =C10*0.335 -> 0 | J4: =G4+H4+I4 -> 0
B5: MAJUBA | C5: =Majuba!I55 -> 0 | D5: =C5*$D$1 -> 0 | F5: Contingency | G5: 0 | H5: 0 | I5: =C12 -> 0 | J5: =G5+H5+I5 -> 0
B6: TUTUKA | C6: =Tutuka!I57 -> 0 | D6: 0 | F6: CPA | G6: 0 | H6: =C14*0.33 -> 0 | I6: =C14*0.67 -> 0 | J6: =G6+H6+I6 -> 0
B7: BWH | C7: =BWH!I44 -> 0 | D7: 0 | G7: =SUM(G4:G6) -> 0 | H7: =SUM(H4:H6) -> 0 | I7: 0 | J7: 0
B8: LETHABO | C8: =Lethabo!I40 -> 0 | D8: 0
B9: MEDUPI | C9: ='Medupi Ash &Coal'!I54 -> 0 | D9: 0
B10: TOTAL | C10: =SUM(C4:C9) -> 0 | D10: =SUM(D4:D9) -> 0
B12: Contingency 10% | C12: =C10*0.1 -> 0
B13: Grand Total | C13: =C10+C12 -> 0
B14: CPA Estimate | C14: =D10 -> 0

Sheet Kendal (hidden)
B2: KUSILE POWER STATION
A4: A1 | B4: P&Gs | D4: Unit of measure | E4: Quantity | F4: Number | G4: Rate | H4: Period | I4: TOTAL 24 MONTHS
A5: A1.1 | B5: Site Establishment | D5: Sum | E5: 1 | F5: 1 | G5: =#REF! ->  | H5: 1 | I5: =E5*F5*G5*H5 -> 
A6: A1.2 | B6: ablution ( Space for change house and locker rooms. | D6: Sum | E6: 1 | F6: 1 | G6: =#REF! ->  | H6: 3
A7: A1.3 | B7: Transport | D7: Month | E7: 1 | F7: 2 | G7: =#REF! ->  | H7: 36 | I7: =E7*F7*G7*H7 -> 
A8: A1.4 | B8: Double Cab Bakkie | D8: Month | E8: 1 | F8: 1 | G8: =#REF! ->  | H8: 36 | I8: =E8*F8*G8*H8 -> 
A9: A1.5 | B9: Safety Training | D9: Annual | E9: 1 | F9: 32 | G9: =[1]RATES!C17 -> R 3,500.00 | H9: 3 | I9: =E9*F9*G9*H9 -> R 336,000.00
A10: A1.6 | B10: Annual Medical + Exit Medical | D10: Annual | E10: 1 | F10: 32 | G10: =[1]RATES!C19 -> R 800.00 | H10: 4 | I10: R 102,400.00
A11: A1.7 | B11: PPE | D11: Annual | E11: 1 | F11: 32 | G11: =[1]RATES!C20 -> R 1,200.00 | H11: 3 | I11: R 115,200.00
A12: A1.8 | B12: Site De-establishment (once-off)- N/A | D12: Sum | E12: 1 | F12: 1 | G12: =#REF! ->  | H12: 1 | I12: =E12*F12*G12*H12 -> 
D13: SUB-TOTAL EXCLUDING VAT | I13: =SUM(I5:I12) -> 
A16: B1 | B16: SKILL TYPE | C16: GRADE | D16: Unit of measure | E16: Quantity | F16: Number of people | G16: Rate | H16: Period | I16: TOTAL 36 MONTHS
A17: B1.1 | B17: Site Manager | C17: M14 | D17: Hours | E17: 173 | F17: 1 | G17: =#REF! ->  | H17: 36 | I17: =E17*F17*G17*H17 -> 
A18: B1.2 | B18: Senior Supervisor Technical shifts | C18: T13 | D18: Hours | E18: 198 | F18: 4 | G18: =#REF! ->  | H18: 36
A19: B1.3 | B19: Senior supervisor shift allowance @ 15% | C19: T13 | D19: Hours | E19: 198 | F19: 4 | G19: =SUM(G18*0.15) ->  | H19: 36
A20: B1.4 | B20: Senior Supervisor Overtime @2,0 | C20: T13 | D20: Hours | E20: 24 | F20: 2 | G20: =SUM(G18*2) ->  | H20: 36
A21: B1.5 | B21: Mechanical Technician Day Shift | C21: T12 | D21: Hours | E21: 198 | F21: 2 | G21: =#REF! ->  | H21: 36
A22: B1.6 | B22: Mechanical Technician Overtime @1,5 | C22: T12 | D22: Hours | E22: 30 | F22: 2 | G22: =SUM(G21*1.5) ->  | H22: 36
A23: B1.7 | B23: Mechanical technician overtime @2,0 | C23: T12 | D23: Hours | E23: 12 | F23: 2 | G23: =SUM(G21*2) ->  | H23: 36
A24: B1.8 | B24: Safety officer Day | C24: T12 | D24: Hours | E24: 173 | F24: 1 | G24: =#REF! ->  | H24: 36 | I24: =E24*F24*G24*H24 -> 
A25: B1.9 | B25: Safety officer Overtime @ 1,5 | C25: T12 | D25: Hours | E25: 20 | F25: 1 | G25: =SUM(G24*1.5) ->  | H25: 36
A26: B1.10 | B26: Safety officer Overtime @ 2.0 | C26: T12 | D26: Hours | E26: 20 | F26: 1 | G26: =SUM(G24*2) ->  | H26: 36
A27: B1.11 | B27: Fitter Artisan (shifts) | C27: T09 | D27: Hours | E27: 198 | F27: 8 | G27: =#REF! ->  | H27: 36 | I27: =E27*F27*G27*H27 -> 
A28: B1.12 | B28: Shift allowance Fitter Artisan @15% | C28: T09 | D28: Hours | E28: 198 | F28: 8 | G28: =SUM(G27*0.15) ->  | H28: 36 | I28: =E28*F28*G28*H28 -> 
A29: B1.13 | B29: Fitter Artisan (shifts) Overtime @ 2.0 | C29: T09 | D29: Hours | E29: 24 | F29: 2 | G29: =G27*2 ->  | H29: 36
A30: B1.14 | B30: Boilermaker Shifts | C30: T09 | D30: Hours | E30: 198 | F30: 4 | G30: =#REF! ->  | H30: 36
A31: B1.15 | B31: Shift allowance Boilermaker Overtime @15% | C31: T09 | D31: Hours | E31: 198 | F31: 4 | G31: =SUM(G30*15%) ->  | H31: 36
A32: B1.16 | B32: Boilermaker Shifts overtime @ 2.0 | C32: T09 | D32: Hours | E32: 24 | F32: 1 | G32: =(G30*2) ->  | H32: 36
A33: B1.17 | B33: Utility man Shifts | C33: T04 | D33: Hours | E33: 198 | F33: 12 | G33: =#REF! ->  | H33: 36 | I33: =E33*F33*G33*H33 -> 
A34: B1.18 | B34: Shift allowance Utility man @15% | C34: T04 | D34: Hours | E34: 198 | F34: 12 | G34: =SUM(G33*0.15) ->  | H34: 36 | I34: =E34*F34*G34*H34 -> 
A35: B1.19 | B35: Utility man Shifts Overtime @ 2.0 | C35: T04 | D35: Hours | E35: 24 | F35: 4 | G35: =G33*2 ->  | H35: 36
D36: SUB-TOTAL SKILL TYPE | I36: =SUM(I17:I35) -> 
D37: SUB-TOTAL EXCLUDING VAT | I37: =SUM(I36,I13) -> 
A43: Note 1 | B43: 1. All tools required to execute the scope will be supplied by the Contractor 2. Contractor to supply their own furniture and storage lockers
A44: Note 2 | B44: All facilities will be supplied by the Employer 1. Water and Electricity 2. Lighting and Ventilation 3. Office Space
A45: Note3 Training will be listed as part of SOW

Sheet Kusile
B2: KUSILE POWER STATION
A4: A1 | B4: P&Gs | D4: Unit of measure | E4: Quantity | F4: Number | G4: Rate | H4: Period | I4: Total 24 months
A5: A1.1 | B5: Site Establishment (Furniture only, office space will be provided by ERI) | D5: Sum | E5: 1 | F5: 1 | H5: 1 | I5: =E5*F5*G5*H5 -> 0
A6: A1.2 | B6: Change house and locker rooms with lockers ( Once Off ) | D6: Sum | E6: 1 | F6: 2 | H6: 1 | I6: 0
A7: A1.3 | B7: Transport | D7: Month | E7: 1 | F7: 2 | H7: 24 | I7: =E7*F7*G7*H7 -> 0
A8: A1.4 | B8: Double cab Bakkie | D8: Month | E8: 1 | F8: 2 | H8: 24 | I8: =E8*F8*G8*H8 -> 0
A9: A1.5 | B9: Safety Training | D9: Annual | E9: 1 | F9: =F25+F28+F31+F34+F37+F41+F51+F55+F45+F48 -> 82 | H9: 2 | I9: =E9*F9*G9*H9 -> 0
A10: A1.6 | B10: Annual Medical + Exit Medical | D10: Annual | E10: 1 | F10: 81 | H10: 3 | I10: 0
A11: A1.7 | B11: PPE | D11: Annual | E11: 1 | F11: 81 | H11: 2 | I11: 0
A12: A1.8 | B12: Winter Jackets | D12: 2 Yearly | E12: 1 | F12: 81 | H12: 2 | I12: 0
A13: A1.9 | B13: Rain Coats | D13: Annual | E13: 1 | F13: 81 | H13: 1 | I13: 0
A14: A1.10 | B14: Standby Allowance | D14: Days | E14: 14 | F14: =F45+F55+F51+F41 -> 59 | H14: 24 | I14: 0
A15: A1.11 | B15: Cellphone Allowances | D15: Month | E15: 1 | F15: 7 | H15: 24 | I15: 0
A16: A1.12 | B16: Other allowances ( RP) | D16: Month | E16: 1 | F16: 22 | H16: 24 | I16: 0
A17: A1.13 | B17: Travelling ( for MIE) | D17: KM | E17: 1 | F17: 1200 | H17: 12 | I17: 0
A18: A1.14 | B18: Tools and consumables ( for MIE) | D18: As and when | E18: 1 | F18: 1 | H18: 12 | I18: 0
A19: A1.15 | B19: Issuing of Certificate of Compliance | D19: Each | E19: 60 | F19: 1 | H19: 6 | I19: 0
A20: A1.16 | B20: Site De-establishment (once-off) | D20: Sum | E20: 1 | F20: 1 | H20: 1 | I20: =E20*F20*G20*H20 -> 0
D21: SUB-TOTAL EXCLUDING VAT | I21: =SUM(I5:I20) -> 0
A24: B1 | B24: SKILL TYPE | C24: GRADE | D24: Unit of measure | E24: Quantity | F24: Number of people | G24: Rate | H24: Period | I24: Total 24 months
A25: B1.1 | B25: Senior Supervisor Technical | C25: T13 | D25: Hours | E25: 173 | F25: 1 | H25: 24 | I25: =E25*F25*G25*H25 -> 0
A26: B1.2 | B26: Senior supervisor Overtime @1,5 | C26: T13 | D26: Hours | E26: 40 | F26: 1 | H26: 24 | I26: 0
A27: B1.3 | B27: Senior Supervisor Overtime @2,0 | C27: T13 | D27: Hours | E27: 24 | F27: 1 | H27: 24 | I27: 0
A28: B1.4 | B28: Technician Mechanical & C&I Day Shift | C28: T12 | D28: Hours | E28: 173 | F28: 5 | H28: 24 | I28: 0
A29: B1.5 | B29: Technician Mechanical & C&I Overtime @1,5 | C29: T12 | D29: Hours | E29: 24 | F29: 5 | H29: 24 | I29: 0
A30: B1.6 | B30: Technician Mechanical & C&I overtime @2,0 | C30: T12 | D30: Hours | E30: 24 | F30: 5 | H30: 24 | I30: 0
A31: B1.7 | B31: Quality Controller Day Shift | C31: T12 | D31: Hours | E31: 173 | F31: 2 | H31: 24 | I31: 0
A32: B1.8 | B32: Quality Controller Overtime @1,5 | C32: T12 | D32: Hours | E32: 24 | F32: 2 | H32: 24 | I32: 0
A33: B1.9 | B33: Quality Controller overtime @2,0 | C33: T12 | D33: Hours | E33: 24 | F33: 2 | H33: 24 | I33: 0
A34: B1.10 | B34: Safety officer Day | C34: T12 | D34: Hours | E34: 173 | F34: 1 | H34: 24 | I34: 0
A35: B1.11 | B35: Safety officer Overtime @ 1,5 | C35: T12 | D35: Hours | E35: 20 | F35: 1 | H35: 24 | I35: 0
A36: B1.12 | B36: Safety officer Overtime @ 2.0 | C36: T12 | D36: Hours | E36: 20 | F36: 1 | H36: 24 | I36: 0
A37: B1.13 | B37: Fitter Artisan (shifts) | C37: T09 | D37: Hours | E37: 183 | F37: 12 | H37: 24 | I37: 0
A38: B1.14 | B38: Shift allowance Fitter Artisan @15% | C38: T09 | D38: Hours | E38: 183 | F38: 12 | H38: 24 | I38: 0
A39: B1.15 | B39: Fitter Artisan (shifts) overtime @ 1,5 | C39: T09 | D39: Hours | E39: 24 | F39: 12 | H39: 24 | I39: 0
A40: B1.16 | B40: Fitter Artisan (shifts) overtime @ 2.0 | C40: T09 | D40: Hours | E40: 36 | F40: 12 | H40: 24 | I40: 0
A41: B1.17 | B41: Boilermaker shifts | C41: T09 | D41: Hours | E41: 183 | F41: 4 | H41: 24 | I41: 0
A42: B1.18 | B42: Boilermaker shifts allowance @ 15% | C42: T09 | D42: Hours | E42: 183 | F42: 4 | H42: 24 | I42: 0
A43: B1.19 | B43: Boilermaker shifts overtime @ 1,5 | C43: T09 | D43: Hours | E43: 24 | F43: 4 | H43: 24 | I43: 0
A44: B1.20 | B44: Boilermaker shifts overtime @ 2.0 | C44: T09 | D44: Hours | E44: 36 | F44: 4 | H44: 24 | I44: 0
A45: B1.21 | B45: Fitter Artisan | C45: T09 | D45: Hours | E45: 173 | F45: 18 | H45: 24 | I45: 0
A46: B1.22 | B46: Fitter Artisan overtime @ 1,5 | C46: T09 | D46: Hours | E46: 40 | F46: 18 | H46: 24 | I46: 0
A47: B1.23 | B47: Fitter Artisan overtime @ 2.0 | C47: T09 | D47: Hours | E47: 24 | F47: 18 | H47: 24 | I47: 0
A48: B1.24 | B48: Rigger | C48: T09 | D48: Hours | E48: 173 | F48: 2 | H48: 24 | I48: 0
A49: B1.25 | B49: Rigger Overtime @1,5 | C49: T09 | D49: Hours | E49: 40 | F49: 2 | H49: 24 | I49: 0
A50: B1.26 | B50: Rigger Overtime @2 | C50: T09 | D50: Hours | E50: 24 | F50: 2 | H50: 24 | I50: 0
A51: B1.27 | B51: Electrical Artisan Shifts | C51: T09 | D51: Hours | E51: 183 | F51: 7 | H51: 24 | I51: 0
A52: B1.28 | B52: Electrical Artisan Shift Allowance @15% | C52: T09 | D52: Hours | E52: 183 | F52: 7 | H52: 24 | I52: 0
A53: B1.29 | B53: ElectricalArtisan Overtime @ 1,5 | C53: T09 | D53: Hours | E53: 24 | F53: 7 | H53: 24 | I53: 0
A54: B1.30 | B54: Electrical Artisan Overtime @ 2.0 | C54: T09 | D54: Hours | E54: 36 | F54: 7 | H54: 24 | I54: 0
A55: B1.31 | B55: Utility man Shifts | C55: T04 | D55: Hours | E55: 183 | F55: 30 | H55: 24 | I55: 0
A56: B1.32 | B56: Shift allowance Utility man @15% | C56: T04 | D56: Hours | E56: 183 | F56: 30 | H56: 24 | I56: 0
A57: B1.33 | B57: Utility man Shifts Overtime@1,5 | C57: T04 | D57: Hours | E57: 24 | F57: 30 | H57: 24 | I57: 0
A58: B1.34 | B58: Utility man Shifts Overtime@2.0 | C58: T04 | D58: Hours | E58: 36 | F58: 30 | H58: 24 | I58: 0
A59: B1.35 | B59: Master installation electrician | D59: Hours | E59: 1500 | F59: 1 | H59: 6 | I59: 0
D63: SUB-TOTAL SKILL TYPE | F63: SUB-TOTAL | I63: =SUM(I25:I59) -> 0
D64: SUB-TOTAL EXCLUDING VAT | I64: =SUM(I63,I21) -> 0
A67: Note 1 | B67: 1. All tools required to execute the scope will be supplied by the Contractor. A list of minimum tools the artisans require is attached 2. Contractor to supply their own furniture and storage lockers
A68: Note 2 | B68: All facilities will be supplied by the Employer 1. Water and Electricity 2. Lighting and Ventilation 3. Office space
A69: Note 3 | B69: Training will be listed as part of SOW
A71: Note 4 | B71: Contractor to purchase 2 x change houses with lockers . The change houses will become the property of ERI upon completion of the contract
A73: Note 5 | B73: RP allowance must be paid in line with what ERI is paying . The rate is as provided and will be escalated based on how ERI escaates theirs.

Sheet Medupi Ash &Coal
B2: MEDUPI POWER STATION
A4: A1 | B4: P&Gs | D4: Unit of measure | E4: Quantity | F4: Number | G4: Rate | H4: Period | I4: Total 24 months
A5: A1.1 | B5: Site Establishment (Furniture only, office space will be provided by ERI) | D5: Sum | E5: 1 | F5: 1 | H5: 1 | I5: =E5*F5*G5*H5 -> 0
A6: A1.2 | B6: Transport (22 Seater) | D6: Month | E6: 1 | F6: 3 | H6: 24 | I6: =E6*F6*G6*H6 -> 0
A7: A1.3 | B7: Safety Training | D7: Annual | E7: 1 | F7: =F21+F22+F23+F26+F29+F32+F35+F38+F41+F44+F47+F50 -> 116 | H7: 2 | I7: 0
A8: A1.4 | B8: Annual Medical + Exit Medical | D8: Annual | E8: 1 | F8: 116 | H8: 3 | I8: 0
A9: A1.5 | B9: PPE | D9: Annual | E9: 1 | F9: 116 | H9: 2 | I9: 0
A10: A1.6 | B10: Winter Jackets | D10: 2 Yearly | E10: 1 | F10: 116 | H10: 1 | I10: 0
A11: A1.7 | B11: Rain Coats | D11: Annual | E11: 1 | F11: 116 | H11: 2 | I11: 0
A12: A1.8 | B12: Standby Allowance | D12: Days | E12: 14 | F12: =F23+F26+F29+F32+F35+F38+F41+F44+F47+F50 -> 114 | H12: 24 | I12: 0
A13: A1.9 | B13: Cellphone Allowances | D13: Month | E13: 1 | F13: =F21+F22+F23+F26+F29 -> 13 | H13: 24 | I13: 0
A14: A1.10 | B14: Other allowances ( RP) | D14: Month | E14: 1 | F14: =F24+F27+F29+F32+F35+F38+F44 -> 49 | H14: 24 | I14: 0
A15: A1.11 | B15: Site De-establishment (once-off) | D15: Sum | E15: 1 | F15: 1 | H15: 1 | I15: 0
D17: SUB-TOTAL EXCLUDING VAT | I17: =SUM(I5:I15) -> 0
F19: =F21+F22+F23+F26+F29+F32+F35+F38+F41+F44+F47+F50 -> 116
A20: B1 | B20: SKILL TYPE | C20: GRADE | D20: Unit of measure | E20: Quantity | F20: Number | G20: Rate | H20: Period | I20: Total 24 months
A21: B1.1 | B21: Project Manager | C21: M15 | D21: Hours | E21: 173 | F21: 1 | H21: 24 | I21: =G21*H21*E21*F21 -> 0
A22: B1.2 | B22: HR/IR Practioner | C22: T12 | D22: Hours | E22: 173 | F22: 1 | H22: 24 | I22: 0
A23: B1.3 | B23: Snr Mech/Elec Supervisor | C23: T13 | D23: Hours | E23: 173 | F23: 2 | H23: 24 | I23: 0
A24: B1.4 | B24: Snr Supervisor overtime @ 1,5 | C24: T13 | D24: Hours | E24: 40 | F24: 2 | H24: 24 | I24: 0
A25: B1.5 | B25: Snr Supervisor overtime @ 2.0 | C25: T13 | D25: Hours | E25: 24 | F25: 1 | H25: 24 | I25: 0
A26: B1.6 | B26: Snr Supervisor C &I and Electrical | C26: T13 | D26: Hours | E26: 173 | F26: 2 | H26: 24 | I26: 0
A27: B1.7 | B27: Snr Supervisor C &I and Electrical overtime @ 1,5 | C27: T13 | D27: Hours | E27: 40 | F27: 2 | H27: 24 | I27: 0
A28: B1.8 | B28: Snr Supervisor C &I overtime @ 2.0 | C28: T13 | D28: Hours | E28: 24 | F28: 2 | H28: 24 | I28: 0
A29: B1.9 | B29: C&I Technician | C29: T12 | D29: Hours | E29: 173 | F29: 7 | H29: 24 | I29: 0
A30: B1.10 | B30: C&I Technician overtime @ 1,5 | C30: T12 | D30: Hours | E30: 40 | F30: 7 | H30: 24 | I30: 0
A31: B1.11 | B31: C&I Technician overtime @ 2 | C31: T12 | D31: Hours | E31: 24 | F31: 7 | H31: 24 | I31: 0
A32: B1.12 | B32: Electrician | C32: T09 | D32: Hours | E32: 173 | F32: 15 | H32: 24 | I32: 0
A33: B1.13 | B33: Electrician overtime @ 1,5 | C33: T09 | D33: Hours | E33: 40 | F33: 15 | H33: 24 | I33: 0
A34: B1.14 | B34: Electrician overtime @ 2.0 | C34: T09 | D34: Hours | E34: 24 | F34: 15 | H34: 24 | I34: 0
A35: B1.15 | B35: C&I Artisan | C35: T09 | D35: Hours | E35: 173 | F35: 5 | H35: 24 | I35: 0
A36: B1.16 | B36: C&I Artisan overtime @ 1,5 | C36: T09 | D36: Hours | E36: 40 | F36: 5 | H36: 24 | I36: 0
A37: B1.17 | B37: C&I Artisan overtime @ 2.0 | C37: T09 | D37: Hours | E37: 24 | F37: 5 | H37: 24 | I37: 0
A38: B1.18 | B38: Fitter Artisan | C38: T09 | D38: Hours | E38: 173 | F38: 14 | H38: 24 | I38: 0
A39: B1.19 | B39: Fitter Artisan overtime @ 1,5 | C39: T09 | D39: Hours | E39: 40 | F39: 14 | H39: 24 | I39: 0
A40: B1.20 | B40: Fitter Artisan overtime @ 2.0 | C40: T09 | D40: Hours | E40: 24 | F40: 14 | H40: 24 | I40: 0
A41: B1.21 | B41: Rigger | C41: T09 | D41: Hours | E41: 173 | F41: 16 | H41: 24 | I41: 0
A42: B1.22 | B42: Rigger overtime @ 1,5 | C42: T09 | D42: Hours | E42: 40 | F42: 16 | H42: 24 | I42: 0
A43: B1.23 | B43: Rigger overtime @ 2.0 | C43: T09 | D43: Hours | E43: 24 | F43: 16 | H43: 24 | I43: 0
A44: B1.24 | B44: Welder | C44: T09 | D44: Hours | E44: 173 | F44: 4 | H44: 24 | I44: 0
A45: B1.25 | B45: Welder overtime @ 1,5 | C45: T09 | D45: Hours | E45: 40 | F45: 4 | H45: 24 | I45: 0
A46: B1.26 | B46: Welder overtime @ 2,0 | C46: T09 | D46: Hours | E46: 24 | F46: 4 | H46: 24 | I46: 0
A47: B1.27 | B47: Crane Operators | C47: T05 | D47: Hours | E47: 173 | F47: 3 | H47: 24 | I47: 0
A48: B1.28 | B48: Crane Operators Overtime @1,5 | C48: T05 | D48: Hours | E48: 40 | F48: 3 | H48: 24 | I48: 0
A49: B1.29 | B49: Crane OperatorsOvertime @2,0 | C49: T05 | D49: Hours | E49: 24 | F49: 3 | H49: 24 | I49: 0
A50: B1.30 | B50: Semi-skilled | C50: T04 | D50: Hours | E50: 173 | F50: 46 | H50: 24 | I50: 0
A51: B1.31 | B51: Semi-Skilled Shifts Overtime@1,5 | C51: T04 | D51: Hours | E51: 40 | F51: 46 | H51: 24 | I51: 0
A52: B1.32 | B52: Semi-Skilled Shifts Overtime@2.0 | C52: T04 | D52: Hours | E52: 24 | F52: 46 | H52: 24 | I52: 0
D53: SUB-TOTAL SKILL TYPE | F53: SUB-TOTAL | I53: =SUM(I21:I52) -> 0
D54: SUB-TOTAL EXCLUDING VAT | I54: =SUM(I53,I17) -> 0
A57: Note 1 | B57: 1. All tools required to execute the scope will be supplied by the Contractor 2. A list of minimum tools the artisans require is attached. Contractor to supply furniture and storage lockers
A58: Note 2 | B58: All facilities will be supplied by the Employer 1. Water and Electricity 2. Lighting and Ventilation 3. Office space
A59: Note3 Training will be listed as part of SOW
B61: RP allownace must be paid in line with what ERI is paying . The rate is as provided and will be escalated based on how ERI escaates theirs.

Sheet Medupi Auxillary &WTP (hidden)
B2: MEDUPI POWER STATION -MAINTENANCE AUXILLARY
A4: A1 | B4: P&Gs | D4: Unit of measure | E4: Quantity | F4: Number | G4: Rate | H4: Period | I4: TOTAL 36 MONTHS
A5: A1.1 | B5: Site Establishment | D5: Sum | E5: 1 | F5: 1 | G5: =#REF! ->  | H5: 1 | I5: =F5*G5*H5*E5 -> 
A6: A1.2 | B6: Transport (22 Seater) | D6: Month | E6: 1 | F6: 2 | G6: =#REF! ->  | H6: 3 | I6: =F6*G6*H6*E6 -> 
A7: A1.3 | B7: Safety Training | D7: Annual | E7: 1 | F7: 35 | G7: =#REF! ->  | H7: 36
A8: A1.4 | B8: Annual Medical + Exit Medical | D8: Annual | E8: 1 | F8: =F21+F24+F27+F30 -> 42 | G8: =#REF! ->  | H8: 3
A9: A1.5 | B9: PPE | D9: Annual | E9: 1 | F9: 42 | G9: =#REF! ->  | H9: 3
A10: A1.6 | B10: Winter Jackets | D10: 2 Yearly | E10: 1 | F10: 42 | G10: =[1]RATES!C19 -> R 800.00 | H10: 4 | I10: R 134,400.00
A11: A1.7 | B11: Rain Coats | D11: Annual | E11: 1 | F11: 42 | G11: R 400.00 | H11: 3 | I11: R 50,400.00
A12: A1.8 | B12: Standby Allowance | D12: Days | E12: 14 | F12: 41 | G12: R 95.00 | H12: 36 | I12: R 1,963,080.00
A13: A1.9 | B13: Cellphone Allowances | D13: Monthly | E13: 1 | F13: 42 | G13: R 650.00 | H13: 36 | I13: R 982,800.00
A14: A1.10 | B14: Other allowances ( RP) | D14: Month | E14: 1 | F14: 11 | G14: R 650.00 | H14: 36 | I14: R 257,400.00
A15: A1.11 | B15: Rain Coats | D15: Annual | E15: 1 | F15: 42 | G15: R 400.00 | H15: 36 | I15: R 604,800.00
A16: A1.12 | B16: Site De-establishment (once-off) | D16: Sum | E16: 1 | F16: 1 | G16: =#REF! ->  | H16: 36
D17: SUB-TOTAL EXCLUDING VAT | I17: =SUM(I5:I16) -> 
A20: B1 | B20: SKILL TYPE | C20: GRADE | D20: Unit of measure | E20: Quantity | F20: Number of people | G20: Rate | H20: Period | I20: TOTAL 36 MONTHS
A21: B1.1 | B21: Electrician | C21: T09 | D21: Hours | E21: 173 | F21: 11 | G21: =#REF! ->  | H21: 36 | I21: =H21*E21*F21*G21 -> 
A22: B1.2 | B22: Electrician overtime @ 1,5 | C22: T09 | D22: Hours | E22: 40 | F22: 11 | G22: =#REF!*1.5 ->  | H22: 36 | I22: =H22*E22*F22*G22 -> 
A23: B1.3 | B23: Electrician overtime @ 2.0 | C23: T09 | D23: Hours | E23: 24 | F23: 11 | G23: =#REF!*2 ->  | H23: 36
A24: B1.4 | B24: Rigger | C24: T09 | D24: Hours | E24: 173 | F24: 8 | G24: =#REF! ->  | H24: 36
A25: B1.5 | B25: Rigger overtime @ 1,5 | C25: T09 | D25: Hours | E25: 40 | F25: 8 | G25: =#REF!*1.5 ->  | H25: 36
A26: B1.6 | B26: Rigger overtime @ 2.0 | C26: T09 | D26: Hours | E26: 24 | F26: 8 | G26: =#REF!*2 ->  | H26: 36
A27: B1.7 | B27: Semi-skilled | C27: T04 | D27: Hours | E27: 173 | F27: 22 | G27: =#REF! ->  | H27: 36
A28: B1.8 | B28: Semi-Skilled Shifts Overtime@1,5 | C28: T04 | D28: Hours | E28: 40 | F28: 22 | G28: =#REF!*1.5 ->  | H28: 36
A29: B1.9 | B29: Semi-Skilled Shifts Overtime@2.0 | C29: T04 | D29: Hours | E29: 24 | F29: 22 | G29: =#REF!*2 ->  | H29: 36
A30: B1.10 | B30: Site Clerck | C30: T05 | D30: Hours | E30: 173 | F30: 1 | G30: =#REF! ->  | H30: 36 | I30: =H30*E30*F30*G30 -> 
D31: SUB-TOTAL SKILL TYPE | F31: SUB-TOTAL | I31: =SUM(I21:I30) -> 
D32: SUB-TOTAL EXCLUDING VAT | I32: =I31+I17 -> 
A35: Note 1 | B35: 1. All tools required to execute the scope will be supplied by the Contractor 2. Contractor to supply their own furniture and storage lockers
A36: Note 2 | B36: All facilities will be supplied by the Employer 1. Water and Electricity 2. Lighting and Ventilation 3. Office space
A37: Note3 Training will be listed as part of SOW

Sheet Grootvlei MMD (hidden)
B2: GROOTVLEI POWER STATION - MMD
A4: A1 | B4: P&Gs | D4: Unit of measure | E4: Quantity | F4: Number | G4: Rate | H4: Period | I4: TOTAL 24 MONTHS
A5: A1.1 | B5: Site Establishment | D5: Sum | E5: 1 | F5: 1 | G5: =[2]RATES!C22 -> R 8,000.00 | H5: 1 | I5: =E5*F5*G5*H5 -> R 8,000.00
A6: A1.2 | B6: ablution ( Space for change house and locker rooms. | D6: Sum | E6: 1 | F6: 1 | G6: =[2]RATES!C19 -> R 200,000.00 | H6: 3 | I6: R 600,000.00
A7: A1.3 | B7: Transport | D7: Month | E7: 1 | F7: 1 | G7: =[2]RATES!C16 -> R 45,000.00 | H7: 36 | I7: =E7*F7*G7*H7 -> R 1,620,000.00
A8: A1.4 | B8: Double cab Bakkie | D8: Month | E8: 1 | F8: 3 | G8: =[2]RATES!C23 -> R 30,000.00 | H8: 36 | I8: =E8*F8*G8*H8 -> R 3,240,000.00
A9: A1.5 | B9: Safety Training | D9: Annual | E9: 1 | F9: 52 | G9: =[1]RATES!C17 -> R 3,500.00 | H9: 3 | I9: =E9*F9*G9*H9 -> R 546,000.00
A10: A1.6 | B10: Annual Medical + Exit Medical | D10: Annual | E10: 1 | F10: 52 | G10: =[1]RATES!C19 -> R 800.00 | H10: 4 | I10: R 166,400.00
A11: A1.7 | B11: PPE | D11: Annual | E11: 1 | F11: 52 | G11: =[1]RATES!C20 -> R 1,200.00 | H11: 3 | I11: R 187,200.00
A12: A1.8 | B12: Site De-establishment (once-off)- N/A | D12: Sum | E12: 1 | F12: 1 | G12: =[2]RATES!C22 -> R 8,000.00 | H12: 1 | I12: =E12*F12*G12*H12 -> R 8,000.00
A13: A1.9 | B13: Safety file | D13: Sum | E13: 1 | F13: 1 | H13: 1 | I13: =E13*F13*G13*H13 -> 0
A14: A1.10 | B14: Arc flash suits | D14: Each | E14: 1 | F14: 19 | H14: 3 | I14: 0
A15: A1.11 | B15: Masks (2 per person – cloths) | D15: Each | E15: 1 | F15: 52 | H15: 5 | I15: 0
A16: A1.12 | B16: Cellphone allowance - Manager | D16: Month | E16: 1 | F16: 2 | G16: R 850.00 | H16: 36 | I16: R 61,200.00
A17: A1.13 | B17: Cellphone allowance - Supervisor | D17: Month | E17: 1 | F17: 5 | G17: R 650.00 | H17: 36 | I17: R 117,000.00
A18: A1.14 | B18: Winter Jackets | D18: Bi-annual | E18: 1 | F18: 52 | H18: 2.5 | I18: 0
D20: SUB-TOTAL EXCLUDING VAT | I20: =SUM(I5:I12) -> R 6,375,600.00
A23: B1 | B23: SKILL TYPE | C23: GRADE | D23: Unit of measure | E23: Quantity | F23: Number of people | G23: Rate | H23: Period | I23: TOTAL 36 MONTHS
A24: B1.1 | B24: Project Manager | C24: M15 | D24: Hours | E24: 173 | F24: 0.25 | H24: 36
A25: B1.2 | B25: Site Manager | C25: M14 | D25: Hours | E25: 173 | F25: 1 | G25: =[2]RATES!C14 -> 387.16 | H25: 36 | I25: =E25*F25*G25*H25 -> R 2,411,232.48
A26: B1.3 | B26: Diesel Mechanic | C26: T09 | D26: Hours | E26: 173 | F26: 1 | G26: =[2]RATES!C9 -> 180.35 | H26: 36 | I26: R 1,123,219.80
A27: B1.4 | B27: Diesel Mechanic Standby allowance | C27: T09 | D27: Hours | E27: 35 | F27: 1 | G27: 94.00 | H27: 36 | I27: R 118,440.00
A28: B1.5 | B28: Diesel Mechanic Overtime @1,5 | C28: T09 | D28: Hours | E28: 10 | F28: 1 | G28: =SUM(G26*1.5) -> 270.53 | H28: 36 | I28: R 97,389.00
A29: B1.6 | B29: Diesel Mechanic Overtime @2,0 | C29: T09 | D29: Hours | E29: 20 | F29: 1 | G29: =SUM(G26*2) -> 360.70 | H29: 36 | I29: R 259,704.00
A30: B1.7 | B30: Senior Supervisor Technical | C30: T13 | D30: Hours | E30: 173 | F30: 4 | G30: =[2]RATES!C12 -> 237.19 | H30: 36 | I30: R 5,908,877.28
A31: B1.8 | B31: Senior supervisor Standby allowance | C31: T13 | D31: Hours | E31: 35 | F31: 4 | G31: 94.00 | H31: 36 | I31: R 473,760.00
A32: B1.9 | B32: Senior Supervisor Overtime @1,5 | C32: T13 | D32: Hours | E32: 85 | F32: 4 | G32: =SUM(G30*1.5) -> 355.79 | H32: 36 | I32: R 4,354,808.40
A33: B1.10 | B33: Senior Supervisor Overtime @2,0 | C33: T13 | D33: Hours | E33: 45 | F33: 4 | G33: =SUM(G30*2) -> 474.38 | H33: 36 | I33: R 3,073,982.40
A34: B1.11 | B34: Administrator Day | C34: T05 | D34: Hours | E34: 173 | F34: 1 | G34: =[2]RATES!C5 -> 86.65 | H34: 36 | I34: R 539,656.20
A35: B1.12 | B35: Storeman | C35: T05 | D35: Hours | E35: 173 | F35: 1 | G35: =[2]RATES!C6 -> 86.65 | H35: 36 | I35: R 539,656.20
A36: B1.13 | B36: Storeman Standby allowance | C36: T05 | D36: Hours | E36: 35 | F36: 1 | G36: 94.00 | H36: 36 | I36: R 118,440.00
A37: B1.14 | B37: Storeman Overtime @1,5 | C37: T05 | D37: Hours | E37: 30 | F37: 1 | G37: =SUM(G35*1.5) -> 129.98 | H37: 36 | I37: R 140,373.00
A38: B1.15 | B38: Storeman Overtime @2.0 | C38: T05 | D38: Hours | E38: 20 | F38: 1 | G38: =SUM(G35*2) -> 173.30 | H38: 36 | I38: R 124,776.00
A39: B1.16 | B39: Safety officer Day | C39: T12 | D39: Hours | E39: 173 | F39: 1 | G39: =[2]RATES!C11 -> 224.13 | H39: 36 | I39: R 1,395,881.64
A40: B1.17 | B40: Safety officer Standby allowance | C40: T12 | D40: Hours | E40: 35 | F40: 1 | G40: 94.00 | H40: 36 | I40: R 118,440.00
A41: B1.18 | B41: Safety officer Overtime @ 1,5 | C41: T12 | D41: Hours | E41: 20 | F41: 1 | G41: =SUM(G39*1.5) -> 336.20 | H41: 36 | I41: R 242,060.40
A42: B1.19 | B42: Safety officer Overtime @ 2.0 | C42: T12 | D42: Hours | E42: 20 | F42: 1 | G42: =SUM(G39*2) -> 448.26 | H42: 36 | I42: R 322,747.20
A43: B1.20 | B43: Fitter Artisan | C43: T09 | D43: Hours | E43: 173 | F43: 15 | G43: =[2]RATES!C9 -> 180.35 | H43: 36 | I43: R 16,848,297.00
A44: B1.21 | B44: Fitter Artisan Standby allowance | C44: T09 | D44: Hours | E44: 35 | F44: 15 | G44: 94.00 | H44: 36 | I44: R 1,776,600.00
A45: B1.22 | B45: Fitter Artisan overtime @ 1,5 | C45: T09 | D45: Hours | E45: 90 | F45: 15 | G45: =SUM(G43*1.5) -> 270.53 | H45: 36 | I45: R 13,147,515.00
A46: B1.23 | B46: Fitter Artisan overtime @ 2.0 | C46: T09 | D46: Hours | E46: 40 | F46: 15 | G46: =SUM(G43*2) -> 360.70 | H46: 36 | I46: R 7,791,120.00
A47: B1.24 | B47: Rigger | C47: T09 | D47: Hours | E47: 173 | F47: 2 | G47: =[2]RATES!C9 -> 180.35 | H47: 36 | I47: R 2,246,439.60
A48: B1.25 | B48: Rigger standby allowance | C48: T09 | D48: Hours | E48: 35 | F48: 2 | G48: 94.00 | H48: 36 | I48: R 236,880.00
A49: B1.26 | B49: Rigger overtime @ 1,5 | C49: T09 | D49: Hours | E49: 60 | F49: 2 | G49: =SUM(G47*1.5) -> 270.53 | H49: 36 | I49: R 1,168,668.00
A50: B1.27 | B50: Rigger overtime @ 2.0 | C50: T09 | D50: Hours | E50: 20 | F50: 2 | G50: =SUM(G47*2) -> 360.70 | H50: 36 | I50: R 519,408.00
A51: B1.28 | B51: Boilermaker | C51: T09 | D51: Hours | E51: 173 | F51: 2 | G51: =[2]RATES!C11 -> 224.13 | H51: 36 | I51: R 2,791,763.28
A52: B1.29 | B52: Boilermaker standby allowance | C52: T09 | D52: Hours | E52: 35 | F52: 2 | G52: 94.00 | H52: 36 | I52: R 236,880.00
A53: B1.30 | B53: Boilermaker overtime @ 1,5 | C53: T09 | D53: Hours | E53: 40 | F53: 2 | G53: =SUM(G51*1.5) -> 336.20 | H53: 36 | I53: R 968,241.60
A54: B1.31 | B54: Boilermaker overtime @ 2.0 | C54: T09 | D54: Hours | E54: 20 | F54: 2 | G54: =SUM(G51*2) -> 448.26 | H54: 36 | I54: R 645,494.40
A55: B1.32 | B55: Welder | C55: T09 | D55: Hours | E55: 173 | F55: 2 | G55: =[2]RATES!C9 -> 180.35 | H55: 36 | I55: R 2,246,439.60
A56: B1.33 | B56: Welder standby allowance | C56: T09 | D56: Hours | E56: 35 | F56: 2 | G56: 94.00 | H56: 36 | I56: R 236,880.00
A57: B1.34 | B57: Welder overtime @ 1,5 | C57: T09 | D57: Hours | E57: 30 | F57: 2 | G57: =SUM(G55*1.5) -> 270.53 | H57: 36 | I57: R 584,334.00
A58: B1.35 | B58: Welder overtime @ 2,0 | C58: T09 | D58: Hours | E58: 20 | F58: 2 | G58: =SUM(G55*2) -> 360.70 | H58: 36 | I58: R 519,408.00
A59: B1.36 | B59: Utility man | C59: T04 | D59: Hours | E59: 173 | F59: 21 | G59: =[2]RATES!C4 -> 80.75 | H59: 36 | I59: R 10,561,131.00
A60: B1.37 | B60: Utility man Standby allowance | C60: T04 | D60: Hours | E60: 35 | F60: 21 | G60: 94.00 | H60: 36 | I60: R 2,487,240.00
A61: B1.38 | B61: Utility man Shifts Overtime@1,5 | C61: T04 | D61: Hours | E61: 45 | F61: 21 | G61: =SUM(G59*1.5) -> 121.13 | H61: 36 | I61: R 4,120,672.50
A62: B1.39 | B62: Utility man Shifts Overtime@2.0 | C62: T04 | D62: Hours | E62: 45 | F62: 21 | G62: =SUM(G59*2) -> 161.50 | H62: 36 | I62: R 5,494,230.00
D63: SUB-TOTAL SKILL TYPE | F63: SUB-TOTAL | I63: =SUM(I25:I62) -> R 95,991,085.98
D64: SUB-TOTAL EXCLUDING VAT | I64: =SUM(I63,I20) -> R 102,366,685.98
A67: Note 1 | B67: 1. All tools required to execute the scope will be supplied by the Contractor 2. Contractor to supply their own furniture and storage lockers
A68: Note 2 | B68: All facilities will be supplied by the Employer 1. Water and Electricity 2. Lighting and Ventilation 3. Office space
A69: Note3 Training will be listed as part of SOW

Sheet Majuba
B2: MAJUBA POWER STATION -
A4: A1 | B4: P&Gs | D4: Unit of measure | E4: Quantity | F4: Number | G4: Rate | H4: Period | I4: Total 24 months
A5: A1.1 | B5: Site Establishment | D5: Sum | E5: 1 | F5: 1 | H5: 1 | I5: =E5*F5*G5*H5 -> 0
A6: A1.2 | B6: Transport ( 14 Seater) | D6: Month | E6: 1 | F6: 2 | H6: 24 | I6: 0
A7: A1.3 | B7: Double cab Bakkie | D7: Month | E7: 1 | F7: 2 | H7: 24 | I7: 0
A8: A1.4 | B8: Annual Medical + Exit Medical | D8: Annual | E8: 1 | F8: 46 | H8: 3 | I8: 0
A9: A1.5 | B9: PPE | D9: Annual | E9: 1 | F9: 46 | H9: 2 | I9: 0
A10: A1.6 | B10: Winter Jackets | D10: 2 Yearly | E10: 1 | F10: 46 | H10: 2 | I10: 0 | M10: We need to as at times these employees work in the cold especially in winter
A11: A1.7 | B11: Rain Coats | D11: Annual | E11: 1 | F11: 46 | H11: 2 | I11: 0
A12: A1.8 | B12: Standby Allowance | D12: Days | E12: 14 | F12: 46 | H12: 24 | I12: 0
A13: A1.9 | B13: Cellphone Allowances | D13: Month | E13: 1 | F13: 2 | H13: 24 | I13: 0 | M13: Supervisors, SHE Officer SM
A14: A1.10 | B14: Other allowances ( RP) | D14: Month | E14: 1 | F14: 39 | H14: 24 | I14: 0
A15: A1.11 | B15: Site De-establishment (once-off) | D15: Sum | E15: 1 | F15: 1 | H15: 2 | I15: 0
D18: SUB-TOTAL EXCLUDING VAT | I18: =SUM(I5:I16) -> 0
A21: B1 | B21: SKILL TYPE | C21: GRADE | D21: Unit of measure | E21: Quantity | F21: Number of people | G21: Rate | H21: Period | I21: TOTAL 24 MONTHS
A22: B1.1 | B22: Site Manager | C22: M14 | D22: Hours | E22: 176 | F22: 0 | H22: 24 | I22: =E22*F22*G22*H22 -> 0
A23: B1.2 | B23: Senior Supervisor Technical | C23: T13 | D23: Hours | E23: 176 | F23: 3 | H23: 24 | I23: 0
A24: B1.3 | B24: Senior Supervisor Overtime @1,5 | C24: T13 | D24: Hours | E24: 40 | F24: 3 | H24: 24 | I24: 0
A25: B1.4 | B25: Senior Supervisor Overtime @2,0 | C25: T13 | D25: Hours | E25: 24 | F25: 3 | H25: 24 | I25: 0
A26: B1.5 | B26: Electrical Technician | C26: T12 | D26: Hours | E26: 176 | F26: 3 | H26: 24 | I26: 0
A27: B1.6 | B27: Electrical TechnicianOvertime @1,5 | C27: T12 | D27: Hours | E27: 40 | F27: 3 | H27: 24 | I27: 0
A28: B1.7 | B28: Electrical Technician Overtime @2,0 | C28: T12 | D28: Hours | E28: 24 | F28: 3 | H28: 24 | I28: 0
A29: B1.8 | B29: Safety officer Day | C29: T12 | D29: Hours | E29: 176 | F29: 1 | H29: 24 | I29: 0
A30: B1.9 | B30: Safety officer Overtime @ 1,5 | C30: T12 | D30: Hours | E30: 40 | F30: 1 | H30: 24 | I30: 0
A31: B1.10 | B31: Safety officer Overtime @ 2.0 | C31: T12 | D31: Hours | E31: 24 | F31: 1 | H31: 24 | I31: 0
A32: B1.11 | B32: Planner | C32: T10 | D32: Hours | E32: 176 | F32: 1 | H32: 24 | I32: 0
A33: B1.12 | B33: Planner overtime @ 1,5 | C33: T10 | D33: Hours | E33: 40 | F33: 1 | H33: 24 | I33: 0
A34: B1.13 | B34: Planner overtime @ 2.0 | C34: T10 | D34: Hours | E34: 24 | F34: 1 | H34: 24 | I34: 0
A35: B1.14 | B35: Electrical Artisans | C35: T09 | D35: Hours | E35: 176 | F35: 11 | H35: 24 | I35: 0
A36: B1.15 | B36: Electrical Artisans overtime @ 1,5 | C36: T09 | D36: Hours | E36: 40 | F36: 11 | H36: 24 | I36: 0
A37: B1.16 | B37: Electrical Artisans overtime @ 2.0 | C37: T09 | D37: Hours | E37: 24 | F37: 11 | H37: 24 | I37: 0
A38: B1.17 | B38: Electrian | C38: T09 | D38: Hours | E38: 176 | F38: 1 | H38: 24 | I38: 0
A39: B1.18 | B39: Electrian overtime @ 1,5 | C39: T09 | D39: Hours | E39: 40 | F39: 1 | H39: 24 | I39: 0
A40: B1.19 | B40: Electrian overtime @ 2,0 | C40: T09 | D40: Hours | E40: 24 | F40: 1 | H40: 24 | I40: 0
A41: B1.20 | B41: Storeman | C41: T05 | D41: Hours | E41: 176 | F41: 1 | H41: 24 | I41: 0
A42: B1.21 | B42: Storeman Overtime @1,5 | C42: T05 | D42: Hours | E42: 40 | F42: 1 | H42: 24 | I42: 0
A43: B1.22 | B43: Storeman Overtime @2 | C43: T05 | D43: Hours | E43: 24 | F43: 1 | H43: 24 | I43: 0
A44: B1.23 | B44: Administrator Day | C44: T05 | D44: Hours | E44: 176 | F44: 1 | H44: 24 | I44: 0
A45: B1.24 | B45: Driver | C45: T05 | D45: Hours | E45: 176 | F45: 2 | H45: 24 | I45: 0
A46: B1.25 | B46: Driver @1.5 | C46: T05 | D46: Hours | E46: 40 | F46: 2 | H46: 24 | I46: 0
A47: B1.26 | B47: Driver @2 | C47: T05 | D47: Hours | E47: 24 | F47: 2 | H47: 24 | I47: 0
A48: B1.27 | B48: General worker office/ Yard cleaner | C48: T02 | D48: Hours | E48: 176 | F48: 2 | H48: 24 | I48: 0
A49: B1.28 | B49: General worker office/ Yard cleaner @1.5 | C49: T02 | D49: Hours | E49: 40 | F49: 2 | H49: 24 | I49: 0
A50: B1.29 | B50: General worker office/ Yard cleaner @2 | C50: T02 | D50: Hours | E50: 24 | F50: 2 | H50: 24 | I50: 0
A51: B1.24 | B51: Utility man | C51: T04 | D51: Hours | E51: 176 | F51: 12 | H51: 24 | I51: 0
A52: B1.25 | B52: Utility man Overtime@1,5 | C52: T04 | D52: Hours | E52: 40 | F52: 12 | H52: 24 | I52: 0
A53: B1.26 | B53: Utility man Overtime@2.0 | C53: T04 | D53: Hours | E53: 24 | F53: 12 | H53: 24 | I53: 0
D54: SUB-TOTAL SKILL TYPE | F54: SUB-TOTAL | I54: =SUM(I22:I53) -> 0
D55: SUB-TOTAL EXCLUDING VAT | I55: =SUM(I54,I18) -> 0
A58: Note 1 | B58: 1. All tools required to execute the scope will be supplied by the Contractor 2. A list of minimum tools the artisans require is attached
A59: Note 2 | B59: All facilities will be supplied by the Employer 1. Water and Electricity 2. Lighting and Ventilation 3. Office space
A60: Note3 | B60: Any training required by the Employer will be provided e.g. Ethics, HIRA, etc however, any other training additional that the Contractor will need, the training costs will be for the Contractor. Training may not be conducted during working hours, unless permission is given by the Employer.
B62: RP allowance must be paid in line with what ERI is paying . The rate is as provided and will be escalated based on how ERI escalates theirs.

Sheet Tutuka
B2: TUTUKA POWER STATION
A4: A1 | B4: P&Gs | D4: Unit of measure | E4: Quantity | F4: Number | G4: Rate | H4: Period | I4: Total 24 months
A5: A1.1 | B5: Site Establishment | D5: Sum | E5: 1 | F5: 1 | H5: 1 | I5: =E5*F5*G5*H5 -> 0
A6: A1.2 | B6: Transport ( 14 Seater) | D6: Month | E6: 1 | F6: 1 | H6: 24 | I6: 0
A7: A1.3 | B7: Double cab Bakkie | D7: Month | E7: 1 | F7: 3 | H7: 24 | I7: 0
A8: A1.4 | B8: Annual Medical + Exit Medical | D8: Annual | E8: 1 | F8: 1 | H8: 3 | I8: 0
A9: A1.5 | B9: PPE | D9: Annual | E9: 1 | F9: 34 | H9: 2 | I9: 0
A10: A1.6 | B10: Winter Jackets | D10: 2 Yearly | E10: 1 | F10: 34 | H10: 2 | I10: 0 | M10: We need to as at times these employees work in the cold especially in winter
A11: A1.7 | B11: Rain Coats | D11: Annual | E11: 1 | F11: 34 | H11: 2 | I11: 0
A12: A1.8 | B12: Standby Allowance | D12: Days | E12: 14 | F12: 33 | H12: 24 | I12: 0
A13: A1.9 | B13: Cellphone Allowances | D13: Month | E13: 1 | F13: 5 | H13: 24 | I13: 0 | M13: Supervisors, SHE Officer SM
A14: A1.10 | B14: Other allowances ( RP) | D14: Month | E14: 1 | F14: 18 | H14: 24 | I14: 0
A15: A1.11 | B15: Site De-establishment (once-off) | D15: Sum | E15: 1 | F15: 1 | H15: 1 | I15: 0
D18: SUB-TOTAL EXCLUDING VAT | I18: =SUM(I5:I16) -> 0
A21: B1 | B21: SKILL TYPE | C21: GRADE | D21: Unit of measure | E21: Quantity | F21: Number of people | G21: Rate | H21: Period | I21: TOTAL 24 MONTHS
A22: B1.1 | B22: Senior Supervisor Technical | C22: T13 | D22: Hours | E22: 173 | F22: 4 | H22: 24 | I22: =E22*F22*G22*H22 -> 0
A23: B1.2 | B23: Senior Supervisor Overtime @1,5 | C23: T13 | D23: Hours | E23: 173 | F23: 4 | H23: 24 | I23: 0
A24: B1.3 | B24: Senior Supervisor Overtime @2,0 | C24: T13 | D24: Hours | E24: 40 | F24: 4 | H24: 24 | I24: 0
A25: B1.4 | B25: Electrical Technician | C25: T12 | D25: Hours | E25: 24 | F25: 3 | H25: 24 | I25: 0
A26: B1.5 | B26: Electrical TechnicianOvertime @1,5 | C26: T12 | D26: Hours | E26: 173 | F26: 3 | H26: 24 | I26: 0
A27: B1.6 | B27: Electrical Technician Overtime @2,0 | C27: T12 | D27: Hours | E27: 40 | F27: 3 | H27: 24 | I27: 0
A28: B1.7 | B28: Safety officer Day | C28: T12 | D28: Hours | E28: 24 | F28: 3 | H28: 24 | I28: 0
A29: B1.8 | B29: Safety officer Overtime @ 1,5 | C29: T12 | D29: Hours | E29: 173 | F29: 3 | H29: 24 | I29: 0
A30: B1.9 | B30: Safety officer Overtime @ 2.0 | C30: T12 | D30: Hours | E30: 40 | F30: 3 | H30: 24 | I30: 0
A31: B1.10 | B31: Planner | C31: T10 | D31: Hours | E31: 24 | F31: 2 | H31: 24 | I31: 0
A32: B1.11 | B32: Planner overtime @ 1,5 | C32: T10 | D32: Hours | E32: 173 | F32: 2 | H32: 24 | I32: 0
A33: B1.12 | B33: Planner overtime @ 2.0 | C33: T10 | D33: Hours | E33: 40 | F33: 2 | H33: 24 | I33: 0
A34: B1.13 | B34: Electrical Artisans | C34: T09 | D34: Hours | E34: 24 | F34: 4 | H34: 24 | I34: 0
A35: B1.14 | B35: Electrical Artisans overtime @ 1,5 | C35: T09 | D35: Hours | E35: 173 | F35: 4 | H35: 24 | I35: 0
A36: B1.15 | B36: Electrical Artisans overtime @ 2.0 | C36: T09 | D36: Hours | E36: 40 | F36: 4 | H36: 24 | I36: 0
A37: B1.16 | B37: Storeman | C37: T05 | D37: Hours | E37: 24 | F37: 1 | H37: 24 | I37: 0
A38: B1.17 | B38: Storeman Overtime @1,5 | C38: T05 | D38: Hours | E38: 173 | F38: 1 | H38: 24 | I38: 0
A39: B1.18 | B39: Storeman Overtime @2 | C39: T05 | D39: Hours | E39: 40 | F39: 1 | H39: 24 | I39: 0
A40: B1.19 | B40: Administrator Day | C40: T05 | D40: Hours | E40: 24 | F40: 1 | H40: 24 | I40: 0
A41: B1.20 | B41: Utility man | C41: T04 | D41: Hours | E41: 173 | F41: 26 | H41: 24 | I41: 0
A42: B1.21 | B42: Utility man Overtime@1,5 | C42: T04 | D42: Hours | E42: 40 | F42: 26 | H42: 24 | I42: 0
A43: B1.22 | B43: Utility man Overtime@2.0 | C43: T04 | D43: Hours | E43: 24 | F43: 26 | H43: 24 | I43: 0
A44: B1.23 | B44: Fitter | C44: T09 | D44: Hours | E44: 173 | F44: 12 | H44: 24 | I44: 0
A45: B1.24 | B45: Fitter Overtime@1,5 | C45: T09 | D45: Hours | E45: 40 | F45: 12 | H45: 24 | I45: 0
A46: B1.25 | B46: Fitter Overtime@2.0 | C46: T09 | D46: Hours | E46: 24 | F46: 12 | H46: 24 | I46: 0
A47: B1.26 | B47: Rigger | C47: T09 | D47: Hours | E47: 173 | F47: 1 | H47: 24 | I47: 0
A48: B1.27 | B48: Rigger Overtime@1,5 | C48: T09 | D48: Hours | E48: 40 | F48: 1 | H48: 24 | I48: 0
A49: B1.28 | B49: Rigger Overtime@2.0 | C49: T09 | D49: Hours | E49: 24 | F49: 1 | H49: 24 | I49: 0
A50: B1.26 | B50: Welder | C50: T09 | D50: Hours | E50: 173 | F50: 4 | H50: 24 | I50: 0
A51: B1.27 | B51: Welder Overtime@1,5 | C51: T09 | D51: Hours | E51: 40 | F51: 4 | H51: 24 | I51: 0
A52: B1.28 | B52: Welder Overtime@2.0 | C52: T09 | D52: Hours | E52: 24 | F52: 4 | H52: 24 | I52: 0
A53: B1.29 | B53: Mechanician | C53: T09 | D53: Hours | E53: 173 | F53: 6 | H53: 24 | I53: 0
A54: B1.30 | B54: Mechanician Overtime@1,5 | C54: T09 | D54: Hours | E54: 40 | F54: 6 | H54: 24 | I54: 0
A55: B1.31 | B55: Mechanician Overtime@2,0 | C55: T09 | D55: Hours | E55: 24 | F55: 6 | H55: 24 | I55: 0
D56: SUB-TOTAL SKILL TYPE | F56: SUB-TOTAL | I56: =SUM(I22:I50) -> 0
D57: SUB-TOTAL EXCLUDING VAT | I57: =SUM(I56,I18) -> 0
A60: Note 1 | B60: Mechanician Overtime@2.0 | C60: T05
A61: Note 2 | B61: All facilities will be supplied by the Employer 1. Water and Electricity 2. Lighting and Ventilation 3. Office space
A62: Note3 | B62: Any training required by the Employer will be provided e.g. Ethics, HIRA, etc however, any other training additional that the Contractor will need, the training costs will be for the Contractor. Training may not be conducted during working hours, unless permission is given by the Employer.
B64: RP allowance must be paid in line with what ERI is paying . The rate is as provided and will be escalated based on how ERI escalates theirs.

Sheet BWH
B2: BULK WATER HANDLING
A4: A1 | B4: P&Gs | D4: Unit of measure | E4: Quantity | F4: Number | G4: Rate | H4: Period | I4: TOTAL 24 MONTHS
A5: A1.1 | B5: Site Establishment | D5: Sum | E5: 1 | F5: 1 | H5: 1 | I5: =E5*F5*G5*H5 -> 0
A6: A1.2 | B6: Transport ( 14 Seater) | D6: Month | E6: 1 | F6: 2 | H6: 24 | I6: =E6*F6*G6*H6 -> 0
A7: A1.3 | B7: Double cab Bakkie | D7: Month | E7: 1 | F7: 2 | H7: 24 | I7: 0
A8: A1.4 | B8: Safety Training | D8: Annual | E8: 1 | F8: 27 | H8: 2 | I8: 0
A9: A1.5 | B9: Annual Medical + Exit Medical | D9: Annual | E9: 1 | F9: =F21+F24+F27+F30+F33+F36+F37+F40 -> 28 | H9: 3 | I9: 0
A10: A1.6 | B10: PPE | D10: Annual | E10: 1 | F10: 28 | H10: 2 | I10: 0
A11: A1.7 | B11: Winter Jackets | D11: 2 Yearly | E11: 1 | F11: 28 | H11: 2 | I11: 0
A12: A1.8 | B12: Rain Coats | D12: Annual | E12: 1 | F12: 28 | H12: 2 | I12: 0
A13: A1.9 | B13: Standby Allowance | D13: Days | E13: 14 | F13: =F21+F27+F24+F30+F33+F37+F39 -> 27 | H13: 24 | I13: 0
A14: A1.10 | B14: Cellphone Allowances | D14: Monthly | E14: 1 | F14: 3 | H14: 24 | I14: 0
A15: A1.11 | B15: Other allowances ( RP) | D15: Month | E15: 1 | F15: =F27+F30+F21 -> 6 | H15: 24 | I15: 0
A16: A1.12 | B16: Site De-establishment (once-off) | D16: Sum | E16: 1 | F16: 1 | H16: 1 | I16: 0
D17: SUB-TOTAL EXCLUDING VAT | I17: =SUM(I5:I16) -> 0
A20: B1 | B20: SKILL TYPE | C20: GRADE | D20: Unit of measure | E20: Quantity | F20: Number of people | G20: Rate | H20: Period | I20: TOTAL 24 MONTHS
A21: B1.1 | B21: Senior Supervisor Technical | C21: T13 | D21: Hours | E21: 173 | F21: 2 | H21: 24 | I21: =E21*F21*G21*H21 -> 0
A22: B1.2 | B22: Senior Supervisor Overtime @1.5 | C22: T13 | D22: Hours | E22: 20 | F22: 2 | H22: 24 | I22: 0
A23: B1.3 | B23: Senior Supervisor Overtime @2,0 | C23: T13 | D23: Hours | E23: 20 | F23: 2 | H23: 24 | I23: 0
A24: B1.4 | B24: Safety officer | C24: T12 | D24: Hours | E24: 173 | F24: 1 | H24: 24 | I24: 0
A25: B1.5 | B25: Safety officer Overtime @ 1,5 | C25: T12 | D25: Hours | E25: 20 | F25: 1 | H25: 24 | I25: 0
A26: B1.6 | B26: Safety officer Overtime @ 2.0 | C26: T12 | D26: Hours | E26: 20 | F26: 1 | H26: 24 | I26: 0
A27: B1.7 | B27: Electrician Artisan | C27: T09 | D27: Hours | E27: 173 | F27: 2 | H27: 24 | I27: 0
A28: B1.8 | B28: Electrician Artisan overtime @ 1.5 | C28: T09 | D28: Hours | E28: 20 | F28: 2 | H28: 24 | I28: 0
A29: B1.9 | B29: Electrician Artisan overtime @ 2.0 | C29: T09 | D29: Hours | E29: 20 | F29: 2 | H29: 24 | I29: 0
A30: B1.10 | B30: Fitter Artisan | C30: T09 | D30: Hours | E30: 173 | F30: 2 | H30: 24 | I30: 0
A31: B1.11 | B31: Fitter Artisan overtime @ 1.5 | C31: T09 | D31: Hours | E31: 20 | F31: 2 | H31: 24 | I31: 0
A32: B1.12 | B32: Fitter Artisan overtime @ 2.0 | C32: T09 | D32: Hours | E32: 20 | F32: 2 | H32: 24 | I32: 0
A33: B1.13 | B33: Team Leader | C33: T07 | D33: Hours | E33: 173 | F33: 2 | H33: 24 | I33: 0
A34: B1.14 | B34: Team Leader Overtime @ 1.5 | C34: T07 | D34: Hours | E34: 20 | F34: 2 | H34: 24 | I34: 0
A35: B1.15 | B35: Team Leader Overtime @ 2.0 | C35: T07 | D35: Hours | E35: 20 | F35: 2 | H35: 24 | I35: 0
A36: B1.16 | B36: Administrator | C36: T07 | D36: Hours | E36: 173 | F36: 1 | H36: 24 | I36: 0
A37: B1.17 | B37: Utility man | C37: T04 | D37: Hours | E37: 173 | F37: 9 | H37: 24 | I37: 0
A38: B1.18 | B38: Utility man Overtime@1.5 | C38: T04 | D38: Hours | E38: 20 | F38: 9 | H38: 24 | I38: 0
A39: B1.19 | B39: Utility man Overtime@2.0 | C39: T04 | D39: Hours | E39: 20 | F39: 9 | H39: 24 | I39: 0
A40: B1.20 | B40: General Worker | C40: T02 | D40: Hours | E40: 173 | F40: 9 | H40: 24 | I40: 0
A41: B1.21 | B41: General Worker Overtime@1.5 | C41: T02 | D41: Hours | E41: 20 | F41: 9 | H41: 24 | I41: 0
A42: B1.22 | B42: General Worker Overtime@2.0 | C42: T02 | D42: Hours | E42: 20 | F42: 9 | H42: 24 | I42: 0
D43: SUB-TOTAL SKILL TYPE | F43: SUB-TOTAL | I43: =SUM(I21:I42) -> 0
D44: SUB-TOTAL EXCLUDING VAT | I44: =SUM(I43,I17) -> 0
A47: Note 1 | B47: 1. All tools required to execute the scope will be supplied by the Contractor 2. Contractor to supply their own furniture and storage lockers. A list of minimum tools the artisans require is attached
A48: Note 2 | B48: All facilities will be supplied by the Employer 1. Water and Electricity 2. Lighting and Ventilation 3. Office space
A49: Note3 Training will be listed as part of SOW
B51: RP allowance must be paid in line with what ERI is paying . The rate is as provided and will be escalated based on how ERI escaates theirs.

Sheet Lethabo
B2: LETHABO POWER STATION
A4: A1 | B4: P&Gs | D4: Unit of measure | E4: Quantity | F4: Number | G4: Rate | H4: Period | I4: TOTAL 24 MONTHS
A5: A1.1 | B5: Site Establishment | D5: Sum | E5: 1 | F5: 1 | H5: 1 | I5: =E5*F5*G5*H5 -> 0
A6: A1.2 | B6: Transport ( 22 Seater) ( including Driver) | D6: Month | E6: 1 | F6: 3 | H6: 24 | I6: =E6*F6*G6*H6 -> 0
A7: A1.3 | B7: Double cab Bakkie | D7: Month | E7: 1 | F7: 2 | H7: 24 | I7: 0
A8: A1.4 | B8: Single cab Bakkie | D8: Month | E8: 1 | F8: 2 | H8: 24 | I8: 0
A9: A1.5 | B9: Sedan | D9: Month | E9: 1 | F9: 1 | H9: 24 | I9: 0
A10: A1.6 | B10: Annual Medical + Exit Medical | D10: Annual | E10: 1 | F10: 24 | H10: 3 | I10: 0
A11: A1.7 | B11: PPE | D11: Annual | E11: 1 | F11: 24 | H11: 2 | I11: 0
A12: A1.8 | B12: Winter Jackets | D12: 2 Yearly | E12: 1 | F12: 24 | H12: 2 | I12: 0
A13: A1.9 | B13: Rain Coats | D13: Annual | E13: 1 | F13: 24 | H13: 1 | I13: 0
A14: A1.10 | B14: Cellphone Allowances | D14: Month | E14: 1 | F14: 3 | H14: 24 | I14: 0
A15: A1.11 | B15: Standby Allowance | D15: Daily | E15: 1 | F15: 17 | H15: 24 | I15: 0
A16: A1.12 | B16: Other allowances ( RP) | D16: Month | E16: 1 | F16: 17 | H16: 24 | I16: 0
A17: A1.13 | B17: Site De-establishment (once-off) | D17: Sum | E17: 1 | F17: 1 | H17: 1 | I17: 0
D18: SUB-TOTAL EXCLUDING VAT | I18: =SUM(I5:I17) -> 0
A21: B1 | B21: SKILL TYPE | C21: GRADE | D21: Unit of measure | E21: Quantity | F21: Number of people | G21: Rate | H21: Period | I21: TOTAL 24 MONTHS
A22: B1.1 | B22: Snr Mech/Elec Supervisor | C22: T13 | D22: Hours | E22: 173 | F22: 1 | H22: 24 | I22: =E22*F22*G22*H22 -> 0
A23: B1.2 | B23: Snr Supervisor overtime @ 1,5 | C23: T13 | D23: Hours | E23: 40 | F23: 1 | H23: 24 | I23: 0
A24: B1.3 | B24: Snr Supervisor overtime @ 2.0 | C24: T13 | D24: Hours | E24: 24 | F24: 1 | H24: 24 | I24: 0
A25: B1.4 | B25: Artisans | C25: T09 | D25: Hours | E25: 183 | F25: 17 | H25: 24 | I25: 0
A26: B1.5 | B26: Artisans Shift Allowance @ 15% | C26: T09 | D26: Hours | E26: 183 | F26: 17 | H26: 24 | I26: 0
A27: B1.6 | B27: Artisans overtime @1,5 | C27: T09 | D27: Hours | E27: 24 | F27: 17 | H27: 24 | I27: 0
A28: B1.7 | B28: Artisans overtime @2,0 | C28: T09 | D28: Hours | E28: 36 | F28: 17 | H28: 24 | I28: 0
A29: B1.8 | B29: Storeman | C29: T05 | D29: Hours | E29: 173 | F29: 1 | H29: 24 | I29: 0
A30: B1.9 | B30: Storeman overtime @1.5 | C30: T05 | D30: Hours | E30: 40 | F30: 1 | H30: 24 | I30: 0
A31: B1.10 | B31: Storeman overtime @2 | C31: T05 | D31: Hours | E31: 24 | F31: 1 | H31: 24 | I31: 0
A32: B1.11 | B32: Bus Drivers | C32: T05 | D32: Hours | E32: 183 | F32: 2 | H32: 24 | I32: 0
A33: B1.12 | B33: Bus Drivers Shift Allowance @ 15% | C33: T05 | D33: Hours | E33: 183 | F33: 2 | H33: 24 | I33: 0
A34: B1.13 | B34: Bus Drivers Overtime @ 2.0 | C34: T05 | D34: Hours | E34: 36 | F34: 2 | H34: 24 | I34: 0
A35: B1.14 | B35: Utility Man | C35: T04 | D35: Hours | E35: 183 | F35: 16 | H35: 24 | I35: 0
A36: B1.15 | B36: Utility Man Shift Allowance @ 15% | C36: T04 | D36: Hours | E36: 183 | F36: 16 | H36: 24 | I36: 0
A37: B1.16 | B37: Utility Man overtime @1,5 | C37: T04 | D37: Hours | E37: 24 | F37: 16 | H37: 24 | I37: 0
A38: B1.17 | B38: Utility Man overtime @2 | C38: T04 | D38: Hours | E38: 36 | F38: 16 | H38: 24 | I38: 0
D39: SUB-TOTAL SKILL TYPE | F39: SUB-TOTAL | I39: =SUM(I22:I38) -> 0
D40: SUB-TOTAL EXCLUDING VAT | I40: =SUM(I39,I18) -> 0
A43: Note 1 | B43: 1. All tools required to execute the scope will be supplied by the Contractor. A list of minimum tools the artisans require is attached
A44: Note 2 | B44: All facilities will be supplied by the Employer 1. Water and Electricity 2. Lighting and Ventilation 3. Office space
B46: RP allowance must be paid in line with what ERI is paying . The rate is as provided and will be escalated based on how ERI escaates theirs.
B48: Any training required by the Employer will be provided e.g. Ethics, HIRA, etc however, any other training additional that the Contractor will need, the training costs will be for the Contractor. Training may not be conducted during working hours, unless permission is given by the Employer.

Sheet Sheet2 (hidden)
A2: Site | B2: Cost Centre | C2: Amount | D2: 2023-24 | E2: 2024-25 | F2: 2025-26
A3: Duvha | B3: 105113 | C3: R99,160,645.08 | D3: R16,526,774.18 | E3: R41,316,935.45 | F3: R41,316,935.45
A4: Medupi | B4: 105122 | C4: =SUMMARY!C9 -> R0.00 | D4: R33,883,567.94 | E4: R84,708,919.84 | F4: R84,708,919.84
A5: Grootvlei | B5: 105136 | C5: R71,480,566.38 | D5: R11,913,427.73 | E5: R29,783,569.33 | F5: R29,783,569.33
A6: Kusile | B6: 105139 | C6: R156,274,326.38 | D6: R26,045,721.06 | E6: R65,114,302.66 | F6: R65,114,302.66
A7: BWH | B7: 105141 | C7: R39,579,036.68 | D7: R6,596,506.11 | E7: R16,491,265.28 | F7: R16,491,265.28
A8: Total | C8: =SUM(C3:C7) -> R366,494,574.52 | D8: =SUM(D3:D7) -> R94,965,997.02 | E8: R237,414,992.56 | F8: R237,414,992.56
A9: Contingency @ 15% | C9: =C8*0.15 -> R54,974,186.18 | D9: R14,244,899.55 | E9: R35,612,248.88 | F9: R35,612,248.88
A10: Estimated CPA | C10: =SUMMARY!C14 -> 0 | D10: R3,429,268.29 | E10: R8,573,170.71 | F10: R8,573,170.71
A11: Total | C11: =C8+C9 -> R421,468,760.70 | D11: =D8+D9 -> R109,210,896.58 | E11: R273,027,241.44 | F11: R273,027,241.44
